[Event "Live Chess"]
[Site "Chess.com"]
[Date "2023.05.21"]
[Round "-"]
[White "ProfPoisson"]
[Black "mattihelenius2"]
[Result "1-0"]
[WhiteElo "1218"]
[BlackElo "490"]
[TimeControl "300"]
[EndTime "6:48:27 PDT"]
[Termination "ProfPoisson won by resignation"]

1. e4 {[%clk 0:04:56.5]} 1... e6 {[%clk 0:04:59.5]} 2. d4 {[%clk 0:04:53.8]}
2... d5 {[%clk 0:04:59.1]} 3. e5 {[%clk 0:04:52.3]} 3... Nf6 {[%clk 0:04:58.4]}
4. exf6 {[%clk 0:04:49.1]} 4... Qxf6 {[%clk 0:04:58.3]} 5. Nf3 {[%clk
0:04:45.1]} 5... Nc6 {[%clk 0:04:56]} 6. Bb5 {[%clk 0:04:42.1]} 6... a6 {[%clk
0:04:53.8]} 7. Bxc6+ {[%clk 0:04:40.4]} 7... bxc6 {[%clk 0:04:52.6]} 8. O-O
{[%clk 0:04:39.4]} 8... Be7 {[%clk 0:04:41]} 9. Bg5 {[%clk 0:04:35.6]} 9... Qf5
{[%clk 0:04:37]} 10. Bxe7 {[%clk 0:04:33.2]} 10... Kxe7 {[%clk 0:04:35.9]} 11.
Ne5 {[%clk 0:04:31.6]} 11... Rf8 {[%clk 0:04:30.7]} 12. Nxc6+ {[%clk 0:04:29.6]}
12... Kd7 {[%clk 0:04:27]} 13. Ne5+ {[%clk 0:04:26.9]} 13... Ke7 {[%clk
0:04:23.6]} 14. Nd2 {[%clk 0:04:17.3]} 14... Bb7 {[%clk 0:04:21.3]} 15. Ndf3
{[%clk 0:04:14.1]} 15... Qe4 {[%clk 0:04:15.7]} 16. Re1 {[%clk 0:04:09.3]} 16...
Qf4 {[%clk 0:04:06.4]} 17. Qd2 {[%clk 0:04:04.4]} 17... Qxd2 {[%clk 0:04:01.8]}
18. Nxd2 {[%clk 0:04:02.2]} 18... f6 {[%clk 0:03:58.7]} 19. Nef3 {[%clk
0:03:57.5]} 19... e5 {[%clk 0:03:56.2]} 20. dxe5 {[%clk 0:03:54.9]} 20... d4
{[%clk 0:03:51.1]} 21. exf6+ {[%clk 0:03:51.9]} 21... Kxf6 {[%clk 0:03:46.4]}
22. Nxd4 {[%clk 0:03:50.3]} 22... Kg6 {[%clk 0:03:40.2]} 23. Rad1 {[%clk
0:03:42.9]} 23... Rae8 {[%clk 0:03:37.1]} 24. Rxe8 {[%clk 0:03:39.9]} 24... Rxe8
{[%clk 0:03:37]} 25. N2f3 {[%clk 0:03:36.2]} 25... Bxf3 {[%clk 0:03:32.6]} 26.
Nxf3 {[%clk 0:03:34]} 26... c5 {[%clk 0:03:29.8]} 27. h4 {[%clk 0:03:31.4]}
27... Re2 {[%clk 0:03:27.6]} 28. Rd2 {[%clk 0:03:26.6]} 28... Re6 {[%clk
0:03:07.9]} 29. c4 {[%clk 0:03:11.7]} 29... a5 {[%clk 0:03:05.3]} 30. Kf1 {[%clk
0:03:06.8]} 30... Kf5 {[%clk 0:03:04.5]} 31. a3 {[%clk 0:02:58.6]} 31... h6
{[%clk 0:02:58.6]} 32. Rd5+ {[%clk 0:02:55.8]} 32... Ke4 {[%clk 0:02:56.1]} 33.
Rxc5 {[%clk 0:02:53.6]} 33... Rd6 {[%clk 0:02:52.6]} 34. Re5+ {[%clk 0:02:49.4]}
34... Kd3 {[%clk 0:02:47.3]} 35. Rd5+ {[%clk 0:02:47.9]} 35... Rxd5 {[%clk
0:02:40.7]} 36. cxd5 {[%clk 0:02:46.4]} 36... Kc4 {[%clk 0:02:39.7]} 37. d6
{[%clk 0:02:45]} 37... Kc5 {[%clk 0:02:38.9]} 38. d7 {[%clk 0:02:43.9]} 1-0

[Event "Live Chess"]
[Site "Chess.com"]
[Date "2023.05.21"]
[Round "-"]
[White "NatashaRegan"]
[Black "Mugzwang"]
[Result "1-0"]
[WhiteElo "1708"]
[BlackElo "1509"]
[TimeControl "300"]
[EndTime "6:48:33 PDT"]
[Termination "NatashaRegan won by checkmate"]

1. e4 {[%clk 0:04:55.3]} 1... c5 {[%clk 0:04:58.4]} 2. d4 {[%clk 0:04:53.3]}
2... cxd4 {[%clk 0:04:57]} 3. c3 {[%clk 0:04:52.6]} 3... Nf6 {[%clk 0:04:55]} 4.
e5 {[%clk 0:04:49.8]} 4... Nd5 {[%clk 0:04:53.6]} 5. cxd4 {[%clk 0:04:47]} 5...
Nc6 {[%clk 0:04:51.8]} 6. Bc4 {[%clk 0:04:44.1]} 6... Nb6 {[%clk 0:04:49.4]} 7.
Bb3 {[%clk 0:04:43]} 7... d6 {[%clk 0:04:46.1]} 8. exd6 {[%clk 0:04:35.7]} 8...
Qxd6 {[%clk 0:04:44.5]} 9. Ne2 {[%clk 0:04:30.5]} 9... Be6 {[%clk 0:04:41.5]}
10. Nbc3 {[%clk 0:04:23.3]} 10... g6 {[%clk 0:04:31.7]} 11. O-O {[%clk
0:04:18.1]} 11... Bg7 {[%clk 0:04:30.1]} 12. d5 {[%clk 0:04:14.5]} 12... Bxc3
{[%clk 0:03:43.5]} 13. Nxc3 {[%clk 0:04:12.2]} 13... Nxd5 {[%clk 0:03:27.9]} 14.
Bxd5 {[%clk 0:04:07.8]} 14... Bxd5 {[%clk 0:03:25]} 15. Qxd5 {[%clk 0:04:06.2]}
15... Qb4 {[%clk 0:03:11.1]} 16. Re1 {[%clk 0:04:00.7]} 16... Rd8 {[%clk
0:03:06.4]} 17. Qg5 {[%clk 0:03:44.2]} 17... O-O {[%clk 0:03:00.8]} 18. a3
{[%clk 0:03:38.4]} 18... Qb6 {[%clk 0:02:40.7]} 19. Be3 {[%clk 0:03:31.8]} 19...
Qxb2 {[%clk 0:02:36.4]} 20. Nd5 {[%clk 0:03:26.1]} 20... Qb3 {[%clk 0:01:58.4]}
21. Nxe7+ {[%clk 0:03:21.5]} 21... Nxe7 {[%clk 0:01:55.6]} 22. Qxe7 {[%clk
0:03:19.8]} 22... Rde8 {[%clk 0:01:40.6]} 23. Qf6 {[%clk 0:03:16.9]} 23... Re6
{[%clk 0:01:27.1]} 24. Qd4 {[%clk 0:03:12.4]} 24... Rfe8 {[%clk 0:01:20.9]} 25.
h4 {[%clk 0:03:07.1]} 25... Qc2 {[%clk 0:01:09.3]} 26. Rac1 {[%clk 0:03:03.7]}
26... Qf5 {[%clk 0:01:06.1]} 27. Rc5 {[%clk 0:02:54.8]} 27... Qe4 {[%clk
0:00:48.5]} 28. Qxe4 {[%clk 0:02:49]} 28... Rxe4 {[%clk 0:00:47.3]} 29. h5
{[%clk 0:02:46.6]} 29... b6 {[%clk 0:00:44.1]} 30. Rd5 {[%clk 0:02:42.9]} 30...
f5 {[%clk 0:00:40.8]} 31. Rc1 {[%clk 0:02:37.7]} 31... f4 {[%clk 0:00:32.2]} 32.
Bd4 {[%clk 0:02:35.8]} 32... f3 {[%clk 0:00:22.2]} 33. gxf3 {[%clk 0:02:32.2]}
33... Rh4 {[%clk 0:00:20.5]} 34. hxg6 {[%clk 0:02:28.7]} 34... hxg6 {[%clk
0:00:18.8]} 35. Rc7 {[%clk 0:02:25.1]} 35... Re1+ {[%clk 0:00:12.8]} 36. Kg2
{[%clk 0:02:23.3]} 36... Rd1 {[%clk 0:00:11]} 37. Rd8# {[%clk 0:02:20]} 1-0

[Event "Live Chess"]
[Site "Chess.com"]
[Date "2023.05.21"]
[Round "-"]
[White "tpm07"]
[Black "viktorskliarov"]
[Result "0-1"]
[WhiteElo "1946"]
[BlackElo "2651"]
[TimeControl "300"]
[EndTime "6:48:34 PDT"]
[Termination "viktorskliarov won by resignation"]

1. e4 {[%clk 0:04:57.1]} 1... c5 {[%clk 0:04:55.9]} 2. Nf3 {[%clk 0:04:55.4]}
2... Nc6 {[%clk 0:04:54.7]} 3. d4 {[%clk 0:04:54.6]} 3... cxd4 {[%clk
0:04:52.2]} 4. Nxd4 {[%clk 0:04:54.5]} 4... g6 {[%clk 0:04:49.1]} 5. c4 {[%clk
0:04:52.4]} 5... Bg7 {[%clk 0:04:47.7]} 6. Be3 {[%clk 0:04:51.2]} 6... Nf6
{[%clk 0:04:44.2]} 7. Nc3 {[%clk 0:04:50.3]} 7... Ng4 {[%clk 0:04:42.5]} 8. Qxg4
{[%clk 0:04:48.2]} 8... Nxd4 {[%clk 0:04:41.8]} 9. Qd1 {[%clk 0:04:47.2]} 9...
Ne6 {[%clk 0:04:41.1]} 10. Be2 {[%clk 0:04:40]} 10... Bxc3+ {[%clk 0:04:38.4]}
11. bxc3 {[%clk 0:04:37.9]} 11... d6 {[%clk 0:04:38]} 12. O-O {[%clk 0:04:36]}
12... O-O {[%clk 0:04:36.3]} 13. f4 {[%clk 0:04:34.3]} 13... Nc5 {[%clk
0:04:27.5]} 14. e5 {[%clk 0:04:19.2]} 14... Be6 {[%clk 0:04:19.9]} 15. exd6
{[%clk 0:04:16.1]} 15... Qxd6 {[%clk 0:04:14.4]} 16. Qxd6 {[%clk 0:04:09.8]}
16... exd6 {[%clk 0:04:14.3]} 17. Rfd1 {[%clk 0:04:00.2]} 17... Rad8 {[%clk
0:04:09.8]} 18. Rd4 {[%clk 0:03:51.5]} 18... Rd7 {[%clk 0:03:58.7]} 19. Rad1
{[%clk 0:03:48.9]} 19... Rfd8 {[%clk 0:03:57.9]} 20. Bf3 {[%clk 0:03:27]} 20...
f5 {[%clk 0:03:40]} 21. Bd5 {[%clk 0:03:20.4]} 21... Bxd5 {[%clk 0:03:38.7]} 22.
Rxd5 {[%clk 0:03:18.4]} 22... Ne4 {[%clk 0:03:35.5]} 23. R1d3 {[%clk 0:03:13]}
23... b6 {[%clk 0:03:32.6]} 24. a4 {[%clk 0:03:00.9]} 24... Rc8 {[%clk
0:03:24.2]} 25. a5 {[%clk 0:02:56.8]} 25... Rxc4 {[%clk 0:03:22.4]} 26. axb6
{[%clk 0:02:54.8]} 26... axb6 {[%clk 0:03:21.7]} 27. Bxb6 {[%clk 0:02:50.7]}
27... Rxc3 {[%clk 0:03:19.5]} 28. Rxc3 {[%clk 0:02:45.3]} 28... Nxc3 {[%clk
0:03:19.4]} 29. Ra5 {[%clk 0:02:27.7]} 29... d5 {[%clk 0:03:17.9]} 30. Bd4
{[%clk 0:02:23]} 30... Ne2+ {[%clk 0:03:16.6]} 0-1

[Event "Live Chess"]
[Site "Chess.com"]
[Date "2023.05.21"]
[Round "-"]
[White "ameetghasi100"]
[Black "GEMdzq"]
[Result "1-0"]
[WhiteElo "2583"]
[BlackElo "2245"]
[TimeControl "300"]
[EndTime "6:48:36 PDT"]
[Termination "ameetghasi100 won by resignation"]

1. d4 {[%clk 0:04:59.4]} 1... Nf6 {[%clk 0:04:58.7]} 2. Nf3 {[%clk 0:04:59.3]}
2... e6 {[%clk 0:04:57.4]} 3. Nc3 {[%clk 0:04:59.2]} 3... c5 {[%clk 0:04:56.7]}
4. d5 {[%clk 0:04:57.2]} 4... exd5 {[%clk 0:04:55.1]} 5. Nxd5 {[%clk 0:04:57.1]}
5... Nxd5 {[%clk 0:04:52.7]} 6. Qxd5 {[%clk 0:04:57]} 6... Nc6 {[%clk
0:04:48.6]} 7. Bf4 {[%clk 0:04:56.4]} 7... d6 {[%clk 0:04:46.5]} 8. O-O-O {[%clk
0:04:55.7]} 8... Be6 {[%clk 0:04:45.7]} 9. Qe4 {[%clk 0:04:54]} 9... d5 {[%clk
0:04:39.3]} 10. Qa4 {[%clk 0:04:53.2]} 10... Be7 {[%clk 0:04:30.5]} 11. e4
{[%clk 0:04:50.8]} 11... d4 {[%clk 0:04:22]} 12. Bc4 {[%clk 0:04:45.2]} 12...
Qc8 {[%clk 0:04:14.5]} 13. h4 {[%clk 0:04:38.2]} 13... O-O {[%clk 0:04:07.9]}
14. Ng5 {[%clk 0:04:37]} 14... Bxc4 {[%clk 0:03:49.3]} 15. Qxc4 {[%clk
0:04:34.8]} 15... h6 {[%clk 0:03:47.6]} 16. Rd3 {[%clk 0:04:26.6]} 16... b5
{[%clk 0:03:33.3]} 17. Qxb5 {[%clk 0:04:22.9]} 17... a6 {[%clk 0:03:27]} 18. Qc4
{[%clk 0:04:21.8]} 18... Qg4 {[%clk 0:03:26]} 19. Bg3 {[%clk 0:04:05.9]} 19...
hxg5 {[%clk 0:03:13.8]} 20. hxg5 {[%clk 0:04:04.1]} 20... Bxg5+ {[%clk
0:03:12.1]} 21. Kb1 {[%clk 0:04:03.6]} 21... Qxe4 {[%clk 0:03:05]} 22. Qxc5
{[%clk 0:03:59.2]} 22... Bh6 {[%clk 0:02:37]} 23. f3 {[%clk 0:03:37.4]} 23...
Qg6 {[%clk 0:02:29]} 24. Bd6 {[%clk 0:03:31.3]} 24... Rfc8 {[%clk 0:02:25.7]}
25. f4 {[%clk 0:03:26.1]} 25... Ne7 {[%clk 0:02:08.7]} 26. Qa3 {[%clk
0:03:06.6]} 26... Nf5 {[%clk 0:02:04.1]} 27. Be5 {[%clk 0:03:04.6]} 27... Qxg2
{[%clk 0:02:01.2]} 28. Rc1 {[%clk 0:03:03.9]} 28... Ne3 {[%clk 0:01:49.7]} 29.
Qb3 {[%clk 0:02:59.5]} 29... Nc4 {[%clk 0:01:40.4]} 30. Rcd1 {[%clk 0:02:48]}
30... Nxe5 {[%clk 0:01:34.3]} 31. fxe5 {[%clk 0:02:47.9]} 31... Be3 {[%clk
0:01:32.6]} 32. e6 {[%clk 0:02:31]} 32... Rab8 {[%clk 0:01:26.4]} 33. exf7+
{[%clk 0:02:30.9]} 33... Kf8 {[%clk 0:01:17.4]} 34. Qa4 {[%clk 0:02:28.2]} 34...
Kxf7 {[%clk 0:01:06]} 35. a3 {[%clk 0:02:18.6]} 35... Rb6 {[%clk 0:00:55.6]} 36.
Qd7+ {[%clk 0:02:11.8]} 36... Kg6 {[%clk 0:00:54]} 37. Qxc8 {[%clk 0:02:11.7]}
37... Rc6 {[%clk 0:00:49]} 38. Qe8+ {[%clk 0:01:25.9]} 38... Kh7 {[%clk
0:00:46.9]} 39. Qh5+ {[%clk 0:01:22.1]} 39... Kg8 {[%clk 0:00:44.2]} 40. c3
{[%clk 0:01:09.8]} 40... dxc3 {[%clk 0:00:29.3]} 41. Rxc3 {[%clk 0:01:08.4]}
41... Rb6 {[%clk 0:00:20.2]} 42. Qd5+ {[%clk 0:01:02.9]} 42... Qxd5 {[%clk
0:00:17.7]} 43. Rxd5 {[%clk 0:01:02.2]} 43... Bg5 {[%clk 0:00:16.9]} 44. Rc8+
{[%clk 0:01:00.8]} 44... Kf7 {[%clk 0:00:15.3]} 45. Rxg5 {[%clk 0:01:00.2]} 1-0

[Event "Live Chess"]
[Site "Chess.com"]
[Date "2023.05.21"]
[Round "-"]
[White "OleksiyJr1"]
[Black "hturner40"]
[Result "1/2-1/2"]
[WhiteElo "1012"]
[BlackElo "1767"]
[TimeControl "300"]
[EndTime "6:48:37 PDT"]
[Termination "Game drawn - timeout vs insufficient material"]

1. e4 {[%clk 0:04:54.2]} 1... Nc6 {[%clk 0:04:58.6]} 2. Nf3 {[%clk 0:04:51]}
2... e5 {[%clk 0:04:57.4]} 3. Nc3 {[%clk 0:04:49.5]} 3... Nf6 {[%clk 0:04:55.9]}
4. Bb5 {[%clk 0:04:48.9]} 4... Bd6 {[%clk 0:04:51.2]} 5. d3 {[%clk 0:04:44.6]}
5... O-O {[%clk 0:04:46.6]} 6. O-O {[%clk 0:04:42.9]} 6... Ne7 {[%clk
0:04:45.3]} 7. Re1 {[%clk 0:04:41.7]} 7... c6 {[%clk 0:04:43.5]} 8. Bc4 {[%clk
0:04:39.7]} 8... Bb8 {[%clk 0:04:41.4]} 9. a3 {[%clk 0:04:38.2]} 9... d5 {[%clk
0:04:40.1]} 10. exd5 {[%clk 0:04:34.5]} 10... cxd5 {[%clk 0:04:38.7]} 11. Ba2
{[%clk 0:04:32.9]} 11... Ng6 {[%clk 0:04:36]} 12. Bg5 {[%clk 0:04:29.9]} 12...
Qd6 {[%clk 0:03:13.7]} 13. Bxf6 {[%clk 0:04:20.5]} 13... gxf6 {[%clk 0:03:12]}
14. Nxd5 {[%clk 0:04:17.9]} 14... f5 {[%clk 0:03:06.9]} 15. Nc3 {[%clk
0:04:13.2]} 15... Be6 {[%clk 0:02:52.8]} 16. Qd2 {[%clk 0:03:50.9]} 16... Rd8
{[%clk 0:02:24.6]} 17. Re2 {[%clk 0:03:40.3]} 17... e4 {[%clk 0:02:01.4]} 18.
dxe4 {[%clk 0:03:24]} 18... Nf4 {[%clk 0:01:59.5]} 19. Qxd6 {[%clk 0:03:20.7]}
19... Nxe2+ {[%clk 0:01:56.5]} 20. Kf1 {[%clk 0:03:14.3]} 20... Bxd6 {[%clk
0:01:54.1]} 21. Kxe2 {[%clk 0:03:11.5]} 21... Bxa2 {[%clk 0:01:50.6]} 22. Rxa2
{[%clk 0:03:05.3]} 22... fxe4 {[%clk 0:01:48.3]} 23. Nxe4 {[%clk 0:03:03.6]}
23... Re8 {[%clk 0:01:46.4]} 24. Kd3 {[%clk 0:02:59.8]} 24... Be5 {[%clk
0:01:34.8]} 25. Nxe5 {[%clk 0:02:56.7]} 25... Rad8+ {[%clk 0:01:26.9]} 26. Ke3
{[%clk 0:02:35]} 26... Rxe5 {[%clk 0:01:25.4]} 27. f4 {[%clk 0:02:30.6]} 27...
Re7 {[%clk 0:01:15.3]} 28. Kf3 {[%clk 0:02:25.8]} 28... f5 {[%clk 0:01:07.7]}
29. Ng5 {[%clk 0:02:19.9]} 29... Rd2 {[%clk 0:01:00.3]} 30. Ra1 {[%clk
0:02:16.9]} 30... Ree2 {[%clk 0:00:49.9]} 31. Rc1 {[%clk 0:01:58.6]} 31... Rf2+
{[%clk 0:00:47.3]} 32. Ke3 {[%clk 0:01:56.4]} 32... Rde2+ {[%clk 0:00:43.9]} 33.
Kd3 {[%clk 0:01:54.7]} 33... Rxg2 {[%clk 0:00:42.1]} 34. c4 {[%clk 0:01:53.3]}
34... Rxb2 {[%clk 0:00:37.9]} 35. c5 {[%clk 0:01:52.1]} 35... Rxh2 {[%clk
0:00:34.7]} 36. Ne6 {[%clk 0:01:51.1]} 36... Rh3+ {[%clk 0:00:32.2]} 37. Kd4
{[%clk 0:01:48.8]} 37... Rxa3 {[%clk 0:00:29.6]} 38. Nd8 {[%clk 0:01:47.3]}
38... Rb4+ {[%clk 0:00:27.9]} 39. Ke5 {[%clk 0:01:45.6]} 39... Raa4 {[%clk
0:00:21.6]} 40. Kxf5 {[%clk 0:01:40.2]} 40... Rxf4+ {[%clk 0:00:20]} 41. Ke5
{[%clk 0:01:39.7]} 41... Rae4+ {[%clk 0:00:18]} 42. Kd6 {[%clk 0:01:37.3]} 42...
Rd4+ {[%clk 0:00:16]} 43. Kc7 {[%clk 0:01:36.3]} 43... Rc4 {[%clk 0:00:12.7]}
44. Nxb7 {[%clk 0:01:34.9]} 44... Rxc1 {[%clk 0:00:10.8]} 45. c6 {[%clk
0:01:33.7]} 45... Rfc4 {[%clk 0:00:09.4]} 46. Kb8 {[%clk 0:01:29.4]} 46... Rxc6
{[%clk 0:00:07.2]} 47. Kxa7 {[%clk 0:01:28.9]} 47... Rc7 {[%clk 0:00:05.9]} 48.
Ka6 {[%clk 0:01:27.9]} 48... Rxb7 {[%clk 0:00:05.3]} 49. Kxb7 {[%clk 0:01:27]}
49... h5 {[%clk 0:00:04.9]} 50. Kb6 {[%clk 0:01:26.6]} 50... h4 {[%clk
0:00:04.6]} 51. Kb5 {[%clk 0:01:26.2]} 51... h3 {[%clk 0:00:04.5]} 52. Kb4
{[%clk 0:01:23.7]} 52... h2 {[%clk 0:00:04.1]} 53. Kb3 {[%clk 0:01:23.6]} 53...
h1=Q {[%clk 0:00:02.6]} 54. Kb2 {[%clk 0:01:23.5]} 54... Qd1 {[%clk 0:00:01.2]}
55. Ka3 {[%clk 0:01:21.5]} 55... Qc2 {[%clk 0:00:00.7]} 56. Kb4 {[%clk
0:01:19.7]} 56... Rb1+ {[%clk 0:00:00.2]} 57. Ka3 {[%clk 0:01:17.8]} 1/2-1/2

[Event "Live Chess"]
[Site "Chess.com"]
[Date "2023.05.21"]
[Round "-"]
[White "domrobson"]
[Black "KeithArkell"]
[Result "0-1"]
[WhiteElo "1766"]
[BlackElo "2487"]
[TimeControl "300"]
[EndTime "6:48:39 PDT"]
[Termination "KeithArkell won by resignation"]

1. d4 {[%clk 0:04:58.7]} 1... e6 {[%clk 0:04:58.9]} 2. c4 {[%clk 0:04:56.1]}
2... Bb4+ {[%clk 0:04:57.6]} 3. Bd2 {[%clk 0:04:54.4]} 3... Bxd2+ {[%clk
0:04:56.5]} 4. Qxd2 {[%clk 0:04:53]} 4... Nf6 {[%clk 0:04:55.8]} 5. Nc3 {[%clk
0:04:51.9]} 5... d6 {[%clk 0:04:55.3]} 6. e4 {[%clk 0:04:51]} 6... e5 {[%clk
0:04:54.1]} 7. dxe5 {[%clk 0:04:48.2]} 7... dxe5 {[%clk 0:04:53.1]} 8. Qxd8+
{[%clk 0:04:47.2]} 8... Kxd8 {[%clk 0:04:51.9]} 9. O-O-O+ {[%clk 0:04:46.2]}
9... Ke8 {[%clk 0:04:49.2]} 10. Be2 {[%clk 0:04:45.2]} 10... c6 {[%clk
0:04:46.4]} 11. h3 {[%clk 0:04:43.7]} 11... Na6 {[%clk 0:04:43.2]} 12. Nf3
{[%clk 0:04:37.3]} 12... Nc5 {[%clk 0:04:39.7]} 13. Nxe5 {[%clk 0:04:34.3]}
13... Ncxe4 {[%clk 0:04:37.4]} 14. Nxe4 {[%clk 0:04:19.2]} 14... Nxe4 {[%clk
0:04:37.3]} 15. Rhf1 {[%clk 0:04:17]} 15... Be6 {[%clk 0:04:22.8]} 16. Bd3
{[%clk 0:04:00.7]} 16... Nc5 {[%clk 0:04:17.5]} 17. Bc2 {[%clk 0:03:57.2]} 17...
a5 {[%clk 0:04:15.6]} 18. Rfe1 {[%clk 0:03:54.4]} 18... Ke7 {[%clk 0:04:10.7]}
19. f4 {[%clk 0:03:51.8]} 19... g6 {[%clk 0:04:08.5]} 20. g4 {[%clk 0:03:50]}
20... Kf6 {[%clk 0:04:06.4]} 21. Rd6 {[%clk 0:03:28.3]} 21... Rhd8 {[%clk
0:04:01.4]} 22. Red1 {[%clk 0:03:26.1]} 22... Rxd6 {[%clk 0:03:59.8]} 23. Rxd6
{[%clk 0:03:24.2]} 23... g5 {[%clk 0:03:53.8]} 24. Nd3 {[%clk 0:03:06.4]} 24...
Nxd3+ {[%clk 0:03:48.9]} 25. Bxd3 {[%clk 0:03:05]} 25... gxf4 {[%clk 0:03:48]}
26. Bxh7 {[%clk 0:02:59]} 26... Rh8 {[%clk 0:03:46.4]} 27. Bf5 {[%clk
0:02:39.9]} 27... Rxh3 {[%clk 0:03:42]} 28. Rd4 {[%clk 0:02:35.7]} 28... Ke5
{[%clk 0:03:40.5]} 29. Re4+ {[%clk 0:02:32]} 29... Kd6 {[%clk 0:03:35.5]} 30.
Bxe6 {[%clk 0:02:27.5]} 30... fxe6 {[%clk 0:03:33.8]} 31. Rxf4 {[%clk
0:02:26.5]} 31... Rg3 {[%clk 0:03:31.4]} 32. Rf7 {[%clk 0:02:20]} 32... Rxg4
{[%clk 0:03:27.2]} 33. Rxb7 {[%clk 0:02:18.2]} 33... Rxc4+ {[%clk 0:03:26.3]}
34. Kd2 {[%clk 0:02:15.7]} 34... Rb4 {[%clk 0:03:25.4]} 35. Rxb4 {[%clk
0:02:12.3]} 35... axb4 {[%clk 0:03:24.2]} 36. Kd3 {[%clk 0:02:00.5]} 36... Kd5
{[%clk 0:03:17.4]} 37. a4 {[%clk 0:01:49.1]} 37... bxa3 {[%clk 0:03:16.6]} 38.
bxa3 {[%clk 0:01:47.9]} 38... Kc5 {[%clk 0:03:15.7]} 39. Kc3 {[%clk 0:01:41.8]}
39... Kb5 {[%clk 0:03:14.3]} 40. Kd4 {[%clk 0:01:39]} 40... Ka4 {[%clk
0:03:10.4]} 41. Kc5 {[%clk 0:01:35.3]} 41... e5 {[%clk 0:03:09.6]} 42. Kc4
{[%clk 0:01:29.3]} 0-1

[Event "Live Chess"]
[Site "Chess.com"]
[Date "2023.05.21"]
[Round "-"]
[White "ClassyChameleon"]
[Black "SupremeTactician"]
[Result "0-1"]
[WhiteElo "1083"]
[BlackElo "2213"]
[TimeControl "300"]
[EndTime "6:48:49 PDT"]
[Termination "SupremeTactician won by checkmate"]

1. e4 {[%clk 0:04:58.1]} 1... e5 {[%clk 0:04:47.1]} 2. Nf3 {[%clk 0:04:55.9]}
2... Nc6 {[%clk 0:04:46]} 3. c3 {[%clk 0:04:53.2]} 3... d5 {[%clk 0:04:43.8]} 4.
d3 {[%clk 0:04:50.5]} 4... dxe4 {[%clk 0:04:42.4]} 5. dxe4 {[%clk 0:04:50]} 5...
Qxd1+ {[%clk 0:04:41.1]} 6. Kxd1 {[%clk 0:04:49.7]} 6... Nf6 {[%clk 0:04:40.3]}
7. Bb5 {[%clk 0:04:48.6]} 7... Bg4 {[%clk 0:04:38.2]} 8. Bxc6+ {[%clk 0:04:46]}
8... bxc6 {[%clk 0:04:38.1]} 9. Nd2 {[%clk 0:04:38.2]} 9... O-O-O {[%clk
0:04:36]} 10. Kc2 {[%clk 0:04:36.1]} 10... Bxf3 {[%clk 0:04:34.7]} 11. Nxf3
{[%clk 0:04:35.5]} 11... Bd6 {[%clk 0:04:33.2]} 12. Be3 {[%clk 0:04:31.6]} 12...
Nxe4 {[%clk 0:04:30.8]} 13. Bxa7 {[%clk 0:04:29.9]} 13... Kb7 {[%clk 0:04:29.3]}
14. Be3 {[%clk 0:04:28.8]} 14... f5 {[%clk 0:04:28.6]} 15. Ng5 {[%clk
0:04:26.3]} 15... Nxg5 {[%clk 0:04:22.8]} 16. Bxg5 {[%clk 0:04:25.9]} 16... Rd7
{[%clk 0:04:22.3]} 17. h4 {[%clk 0:04:22.3]} 17... h6 {[%clk 0:04:21.6]} 18. Be3
{[%clk 0:04:20.5]} 18... Rhd8 {[%clk 0:04:21.2]} 19. g3 {[%clk 0:04:12.3]} 19...
Be7 {[%clk 0:04:08.5]} 20. Rac1 {[%clk 0:04:10.4]} 20... Bf6 {[%clk 0:04:06.2]}
21. Kb1 {[%clk 0:04:08.7]} 21... Rd3 {[%clk 0:04:05]} 22. a3 {[%clk 0:04:02.7]}
22... R8d6 {[%clk 0:04:03]} 23. Bc5 {[%clk 0:03:58.1]} 23... Re6 {[%clk
0:04:01.6]} 24. Bf8 {[%clk 0:03:48.7]} 24... e4 {[%clk 0:03:55.6]} 25. Rhe1
{[%clk 0:03:44.5]} 25... g5 {[%clk 0:03:51.8]} 26. Bxh6 {[%clk 0:03:40.7]} 26...
gxh4 {[%clk 0:03:49.7]} 27. Bf4 {[%clk 0:03:36.6]} 27... hxg3 {[%clk 0:03:47.7]}
28. Bxg3 {[%clk 0:03:36]} 28... Bg5 {[%clk 0:03:45.7]} 29. Rcd1 {[%clk
0:03:28.5]} 29... Rxd1+ {[%clk 0:03:44]} 30. Rxd1 {[%clk 0:03:27.7]} 30... f4
{[%clk 0:03:43.8]} 31. Bh2 {[%clk 0:03:23.5]} 31... Rh6 {[%clk 0:03:43.5]} 32.
Bg1 {[%clk 0:03:20.1]} 32... Rh1 {[%clk 0:03:41.8]} 33. Kc2 {[%clk 0:03:18.4]}
33... f3 {[%clk 0:03:35.4]} 34. Kb3 {[%clk 0:03:11.9]} 34... Bh4 {[%clk
0:03:31.5]} 35. Kb4 {[%clk 0:02:58.8]} 35... Rxg1 {[%clk 0:03:29.6]} 36. Rxg1
{[%clk 0:02:56.5]} 36... Bxf2 {[%clk 0:03:29.3]} 37. Rg4 {[%clk 0:02:52.4]}
37... e3 {[%clk 0:03:28.7]} 38. Kc5 {[%clk 0:02:44.3]} 38... e2+ {[%clk
0:03:27.1]} 39. Kc4 {[%clk 0:02:40.6]} 39... e1=Q {[%clk 0:03:27]} 40. Kb3
{[%clk 0:02:38.3]} 40... Qe6+ {[%clk 0:03:24]} 41. Rc4 {[%clk 0:02:36.4]} 41...
Bc5 {[%clk 0:03:23.1]} 42. a4 {[%clk 0:02:30.3]} 42... f2 {[%clk 0:03:21]} 43.
a5 {[%clk 0:02:26.3]} 43... f1=Q {[%clk 0:03:19.5]} 44. a6+ {[%clk 0:02:24.8]}
44... Kxa6 {[%clk 0:03:18.6]} 45. Ka4 {[%clk 0:02:23.8]} 45... Qexc4+ {[%clk
0:03:17.3]} 46. b4 {[%clk 0:02:21]} 46... Qa1# {[%clk 0:03:17.2]} 0-1

[Event "Live Chess"]
[Site "Chess.com"]
[Date "2023.05.21"]
[Round "-"]
[White "McSlash1"]
[Black "gmnorfolk"]
[Result "0-1"]
[WhiteElo "1988"]
[BlackElo "2146"]
[TimeControl "300"]
[EndTime "6:48:52 PDT"]
[Termination "gmnorfolk won by resignation"]

1. e4 {[%clk 0:04:58.9]} 1... e5 {[%clk 0:04:59]} 2. Nf3 {[%clk 0:04:57.8]} 2...
Nc6 {[%clk 0:04:58.6]} 3. Bb5 {[%clk 0:04:57.3]} 3... a6 {[%clk 0:04:58.1]} 4.
Ba4 {[%clk 0:04:57]} 4... Nf6 {[%clk 0:04:57.6]} 5. Bb3 {[%clk 0:04:56.6]} 5...
Be7 {[%clk 0:04:55.9]} 6. O-O {[%clk 0:04:56.2]} 6... O-O {[%clk 0:04:55.3]} 7.
Re1 {[%clk 0:04:55.9]} 7... b5 {[%clk 0:04:54.5]} 8. d3 {[%clk 0:04:54]} 8...
Bb7 {[%clk 0:04:51.5]} 9. c3 {[%clk 0:04:51.9]} 9... d5 {[%clk 0:04:50.3]} 10.
h3 {[%clk 0:04:51.8]} 10... dxe4 {[%clk 0:04:48.6]} 11. Ng5 {[%clk 0:04:45.8]}
11... exd3 {[%clk 0:04:43.6]} 12. Nd2 {[%clk 0:04:43.7]} 12... h6 {[%clk
0:04:41.5]} 13. Nge4 {[%clk 0:04:42.8]} 13... Nxe4 {[%clk 0:04:37.3]} 14. Nxe4
{[%clk 0:04:42.7]} 14... Kh8 {[%clk 0:04:36.5]} 15. f4 {[%clk 0:04:33.7]} 15...
f5 {[%clk 0:03:48.8]} 16. Ng5 {[%clk 0:04:26.3]} 16... Bxg5 {[%clk 0:03:11.3]}
17. fxg5 {[%clk 0:04:24]} 17... e4 {[%clk 0:03:07.4]} 18. Qh5 {[%clk 0:04:13]}
18... d2 {[%clk 0:02:56.4]} 19. Rd1 {[%clk 0:04:10.3]} 19... dxc1=Q {[%clk
0:02:52.8]} 20. Raxc1 {[%clk 0:04:10.2]} 20... Qxg5 {[%clk 0:02:50]} 21. Qe2
{[%clk 0:04:06.8]} 21... Ne5 {[%clk 0:02:47]} 22. Rf1 {[%clk 0:04:00.8]} 22...
Nd3 {[%clk 0:02:44.8]} 23. Rcd1 {[%clk 0:03:58.8]} 23... f4 {[%clk 0:02:43.9]}
24. Bc2 {[%clk 0:03:56.3]} 24... f3 {[%clk 0:02:42.8]} 25. Qd2 {[%clk
0:03:53.5]} 25... e3 {[%clk 0:02:40]} 0-1